Cogmind - Beta 11 X8 @@@ ROGUE MODE // 2021.12.09 @ 18:00:13 Player: btmk16 Result: Self-destructed Performance ------------- Evolutions (1) 500 Regions Visited (2) 400 Robots Destroyed (19) 95 Value Destroyed (490) 490 Prototype IDs (0) 0 Alien Tech Used (0) 0 Bonus (0) 0 TOTAL SCORE: 1485 Bonus ------- None Cogmind --------- Core Integrity 144/400 Matter 300/300 Energy 100/100 System Corruption 0% Temperature Cool (0) Movement Core (100) Ox1 Location -9/Materials Parts ------- > --- POWER (1) -------- (None) > --- PROPULSION (2) --- (None) > --- UTILITY (4) ------ Small Storage Unit Structural Scanner > --- WEAPON (2) ------- (None) > --- INVENTORY (8) ---- Hardened Light Armor Plating Hardened Light Armor Plating Hacking Suite Hacking Suite Peak State ------------ > --- POWER ------------ (None) > --- PROPULSION ------- Improved Hover Unit Improved Hover Unit > --- UTILITY ---------- Small Storage Unit Structural Scanner Hardened Light Armor Plating > --- WEAPON ----------- EM Shotgun > --- INVENTORY -------- Ion Engine Hardened Light Armor Plating Hardened Light Armor Plating Hacking Suite Hacking Suite [Rating: 11] Favorites ----------- Power Light Ion Engine Engine Light Ion Engine Propulsion Improved Hover Unit Leg Aluminum Leg Hover Unit Improved Hover Unit Utility Small Storage Unit Device Structural Scanner Storage Small Storage Unit Protection Hardened Light Armor Plating Weapon Assault Rifle Energy Gun Small Laser Ballistic Gun Assault Rifle Build | -11 -10 -9 ------- Run | Scr Mat Mat Slots Evolved 2 | . . 2 Power . | . . . Propulsion . | . . . Utility 2 | . . 2 Weapon . | . . . Parts Attached 10 | . 5 5 Power 1 | . . 1 Engine 1 | . . 1 Core . | . . . Reactor . | . . . Propulsion 4 | . 2 2 Treads . | . . . Leg . | . . . Wheel . | . . . Hover 4 | . 2 2 Flight . | . . . Utility 3 | . 2 1 Device 2 | . 2 . Storage . | . . . Processor . | . . . Hackware . | . . . Protection 1 | . . 1 Artifact . | . . . Weapon 2 | . 1 1 Energy Gun 1 | . . 1 Energy Cannon . | . . . Ballistic Gun 1 | . 1 . Ballistic Cannon . | . . . Launcher . | . . . Special Weapon . | . . . Impact Weapon . | . . . Slashing Weapon . | . . . Piercing Weapon . | . . . Special Melee Weapon . | . . . Unidentified Prototypes . | . . . Parts Lost 10 | . . 10 Power 2 | . . 2 Propulsion 4 | . . 4 Utility 1 | . . 1 Weapon 3 | . . 3 Highest Loss Streak 5 | . . 5 Average Slot Usage (%) 83 | . 98 63 Engine 11 | . 14 8 Hover 22 | . 27 17 Device 12 | . 12 11 Storage 12 | . 14 11 Protection 1 | . . 3 Energy Gun 2 | . 2 1 Ballistic Gun 19 | . 25 10 Naked Turns . | . . . Heaviest Build 19 | 11 13 19 Greatest Support 20 | 20 20 14 Greatest Overweight (x) 3 | . 1 3 Average Overweight (x) . | . . . Largest Inventory Capacity 8 | . 8 8 Average Capacity 8 | . 8 8 Most Carried 8 | . 8 8 Average Carried 7 | . 7 6 Final Capacity 8 | 8 8 8 Final Carried 8 | 6 8 4 Class Distribution -------------------- 100% | Mutant Dominant Class ---------------- Mutant | -10/Materials Mutant | -9/Materials Resources | -11 -10 -9 ----------- Run | Scr Mat Mat Matter Collected 486 | 200 232 54 Remotely . | . . . Salvage Created 616 | . 473 143 Parts 43 | . 31 12 Haulers Intercepted . | . . . Recyclers Shooed . | . . . Parts Field Recycled . | . . . Retrieved Matter . | . . . Parts Self-Destructed . | . . . Prevented . | . . . Kills | -11 -10 -9 ------- Run | Scr Mat Mat Combat Hostiles Destroyed 15 | . 11 4 Guns 15 | . 11 4 Classes Destroyed 5 | . 4 1 Builder 1 | . 1 . Operator 3 | . 3 . Swarmer 5 | . 3 2 Grunt 9 | . 8 1 Sentry 1 | . . 1 Best Kill Streak 4 | . 4 4 Combat Bots Only 4 | . 4 4 Max Kills in Single Turn 1 | . 1 1 Gunslinging . | . . . Exploded . | . . . Melee . | . . . Uniques/NPCs Destroyed . | . . . Combat | -11 -10 -9 -------- Run | Scr Mat Mat Damage Taken 1268 | . 444 824 Core 391 | . 135 256 Absorbed by Shields . | . . . Core Remaining (%) 73 | 100 46 . Volleys Fired 53 | . 37 16 Largest 2 | . 2 2 Hottest 60 | . 60 45 Shots Fired 93 | . 74 19 Gun 93 | . 74 19 Cannon . | . . . Launcher . | . . . Special . | . . . Kinetic 74 | . 68 6 Thermal 6 | . 6 . Explosive . | . . . Electromagnetic 13 | . . 13 Robot Hit Streak 10 | . 9 10 Robot Miss Streak 5 | . 2 5 Penetration Max . | . . . Secondary Targets 2 | . 2 . Max Gunslinging Chain 1 | . 1 . Shots Hit Robots 63 | . 49 14 Core Hits 33 | . 24 9 Critical Kills . | . . . Critical Parts Destroyed 2 | . 2 . Critical Strikes 2 | . 2 . Destroy 2 | . 2 . Melee Attacks . | . . . Impact . | . . . Slashing . | . . . Piercing . | . . . Sneak Attacks . | . . . Combat Hostiles . | . . . Follow-up Attacks . | . . . Damage Inflicted 808 | . 638 170 Guns 797 | . 638 159 Cannons . | . . . Explosions . | . . . Melee . | . . . Ramming 11 | . . 11 Kinetic 635 | . 594 41 Thermal 44 | . 44 . Explosive . | . . . Electromagnetic 118 | . . 118 Impact . | . . . Slashing . | . . . Piercing . | . . . Highest Corruption . | . . . Average Corruption . | . . . Corruption Purged . | . . . Overload Shots . | . . . Overflow Damage . | . . . Projectiles . | . . . Explosions . | . . . Melee . | . . . Knockbacks . | . . . Impact . | . . . Kinetic . | . . . Secondary . | . . . Self-Inflicted Damage 105 | . 101 4 Shots 1 | . 1 . Rammed 5 | . . 5 Targets Rammed 5 | . . 5 Kicked . | . . . Crushed . | . . . Highest Temperature 80 | . 18 80 Average Temperature 15 | . 5 26 Received Heat Transfer 474 | . 183 291 Siege Activations . | . . . Robots Corrupted . | . . . Combat Hostiles . | . . . Parts Fried . | . . . Impact Corruptions . | . . . Robots Melted . | . . . Combat Hostiles . | . . . Parts Melted . | . . . Heat Transferred 100 | . 100 . Parts Sabotaged . | . . . Parts Stolen . | . . . Parts Stripped . | . . . Power Chain Reactions . | . . . Missiles Intercepted . | . . . Alert | -11 -10 -9 ------- Run | Scr Mat Mat Peak Influence 406 | . 406 269 Initial 99 | . . 99 Average 177 | . 202 143 Maximum Alert Level 2 | . 2 1 Low Security (%) 58 | . 46 75 Level 1 38 | . 49 24 Level 2 2 | . 4 . Level 3 . | . . . Level 4 . | . . . Level 5 . | . . . High Security . | . . . Max Security . | . . . Squads Dispatched 5 | . 4 1 Investigation 1 | . 1 . Extermination . | . . . Reinforcement 4 | . 3 1 Assault . | . . . Garrison . | . . . Intercept . | . . . Construction Impeded . | . . . Haulers Reinforced . | . . . Active Scanning Responses . | . . . Cargo Convoy Interrupts . | . . . Stealth | -11 -10 -9 --------- Run | Scr Mat Mat Distress Signals 1 | . . 1 Communications Jammed . | . . . Distress Signals . | . . . Times Spotted 43 | . 25 18 Peak Tracking Total 7 | . 4 7 Tactical Retreats 6 | . 2 4 Traps | -11 -10 -9 ------- Run | Scr Mat Mat Traps Triggered 1 | . 1 . Indirectly . | . . . Trap Hack Attempts . | . . . Triggered . | . . . Disarmed . | . . . Reprogrammed . | . . . Reused . | . . . Traps Extracted . | . . . Installed . | . . . Triggered . | . . . Machines | -11 -10 -9 ---------- Run | Scr Mat Mat Machines Disabled 1 | . 1 . Max in Single Turn 1 | . 1 . Machines Sabotaged . | . . . Garrisons Compromised . | . . . Overloaded Fab Kills . | . . . Hacking | -11 -10 -9 --------- Run | Scr Mat Mat Machines Accessed 3 | . 2 1 Terminals 3 | . 2 1 Fabricators . | . . . Repair Stations . | . . . Recycling Units . | . . . Scanalyzers . | . . . Garrison Access . | . . . Total Hacks 8 | . 4 4 Successful 4 | . 2 2 Failed 4 | . 2 2 Catastrophic . | . . . Database Lockouts . | . . . Manual 2 | . 2 . Terminals 8 | . 4 4 Fabricators . | . . . Repair Stations . | . . . Recycling Units . | . . . Scanalyzers . | . . . Garrison Access . | . . . Terminal Hacks 4 | . 2 2 Robot Analysis 2 | . 2 . Branch Access Points 1 | . . 1 Alert Level 1 | . . 1 Fabricator Hacks . | . . . Repair Station Hacks . | . . . Recycling Unit Hacks . | . . . Scanalyzer . | . . . Garrison Access Hacks . | . . . Unauthorized Hacks . | . . . Terminals . | . . . Fabricators . | . . . Repair Stations . | . . . Recycling Units . | . . . Scanalyzers . | . . . Garrison Access . | . . . Data Cores Recovered . | . . . Used . | . . . Hacking Detections 3 | . 2 1 Full Trace Events . | . . . Feedback Events . | . . . Feedback Blocked . | . . . Robot Schematics Acquired . | . . . Robots Built . | . . . Authchips . | . . . Time . | . . . Total Robot Build Rating . | . . . Part Schematics Acquired . | . . . Parts Built . | . . . Authchips . | . . . Time . | . . . Total Part Build Rating . | . . . Parts Repaired . | . . . Time . | . . . Parts Recycled . | . . . Recycled Matter . | . . . Retrieved Matter . | . . . Retrieved Components . | . . . Parts Scanalyzed . | . . . Part Schematics Acquired . | . . . Parts Damaged . | . . . Bothacking | -11 -10 -9 ------------ Run | Scr Mat Mat Used RIF Installer . | . . . Robots Hacked . | . . . Non-combat . | . . . Combat . | . . . Robot Hacks Applied . | . . . Relay Couplers Released . | . . . Fabnet Peak Effective % . | . . . Robots Rewired . | . . . Allies Hacked . | . . . Hacks Repelled . | . . . Allies | -11 -10 -9 -------- Run | Scr Mat Mat Total Allies . | . . . Largest Group . | . . . Highest-Rated Group . | . . . Highest-Rated Ally . | . . . Total Orders . | . . . Ally Attacks . | . . . Total Damage . | . . . Kills . | . . . Allies Corrupted . | . . . Allies Melted . | . . . Intel | -11 -10 -9 ------- Run | Scr Mat Mat Robot Analysis Total 2 | . 2 . Derelict Logs Recovered . | . . . Drone Launches . | . . . Drone Recoveries . | . . . Exploration | -11 -10 -9 ------------- Run | Scr Mat Mat Turns Passed 808 | . 461 347 Spaces Moved 784 | 1 563 220 Core 20 | . . 20 Treads . | . . . Legs 14 | 1 13 . Wheels . | . . . Hover 750 | . 550 200 Flight . | . . . Fastest Speed 56 | 120 56 56 Average Speed 64 | 120 57 81 Slowest Speed 200 | 120 130 200 Overloaded Moves . | . . . Propulsion Burnouts . | . . . Robots Hopped . | . . . Cave-ins Triggered . | . . . Exploration Rate (%) 39 | 2 86 30 Regions Visited 2 Branch Regions . Pre-discovered Areas . | . . . Known Exits Taken . | . . . Unknown Exits Taken 2 | 1 1 . Scrap Searched . | . . . Spaces Dug . | . . . Terrain Destroyed 35 | . 35 . Melee . | . . . Projectile . | . . . AOE 35 | . 35 . Terrain Rammed . | . . . Walls Destroyed . | . . . Machines Disabled . | . . . Actions | -11 -10 -9 --------- Run | Scr Mat Mat Total 995 | . 629 366 Wait 126 | . 6 120 Move 782 | . 562 220 Hop . | . . . Pick Up 8 | . 8 . Fast Attach 4 | . 3 1 Attach 5 | . 1 4 Detach 2 | . 2 . Swap 1 | . 1 . Drop 9 | . 9 . Fire 53 | . 37 16 Melee . | . . . Ram 5 | . . 5 Kick . | . . . Crush . | . . . Escape Stasis . | . . . Rewire . | . . . Trap . | . . . Miscellaneous . | . . . Route ------- -11/Scrapyard -10/Materials (discovered 5 exits: *Mat x3 / [*Min x2]) -9/Materials (discovered 1 exit: Min) History --------- Turn | Location | Event 1 | -11/Scrapyard | Discovered new exit (range 0) 1 | -11/Scrapyard | Entered Materials 159 | -10/Materials | Discovered new exit (range 10) 259 | -10/Materials | Discovered new exit (range 8) 307 | -10/Materials | Core integrity fell below 50% 316 | -10/Materials | Build established: Mutant 335 | -10/Materials | Discovered new exit (range 8) 351 | -10/Materials | Discovered new exit (range 8) 376 | -10/Materials | Discovered new exit (range 10) 462 | -10/Materials | Entered another Materials area 462 | -9/Materials | Evolved 2 slots: Utility x2 672 | -9/Materials | Lost 5 parts (1p2n2w) 723 | -9/Materials | Identified exit to Mines 741 | -9/Materials | Core integrity fell below 50% 809 | -9/Materials | Self-destructed Last Messages --------------- 00723_ Connecting with Terminal... >>Alert(Check) Current Alert Level: Low Security >>Access(Branch) Found 1 branch access point: (50,49) Mines Map updated. 00723_ G-34 Mercenary destroyed. 00732_ Acquired 25 matter. 00735_ K-01 Serf collects debris. 00736_ EM Shotgun destroyed. 00738_ K-01 Serf collects debris. 00739_ Critical hit (Burn: +37). 00742_ Hrd. Light Armor Plating destroyed. 00742_ K-01 Serf destroyed. 00748_ Slammed into A-02 Transporter. 00774_ Critical hit (Burn: +37). 00778_ Imp. Hover Unit destroyed. 00788_ Matter Filter disabled. 00797_ Ion Engine destroyed. Map ----- +----------------------------------------------------+ | ???????????????????????????????????????????????? | | ???????????????????????????????????????????????? | | ???????????????????????????????????????????????? | | ???????????????????????????????????????????????? | | ???????????????????????????????????????????????? | | ???????????????????????????????????????????????? | | ???????????????????????????????????????????????? | | ???????????????????????????????????????????????? | | ???????????????????????????????????????????????? | | ???????????????????????????????????????????????? | | ?????????????????????? ??????????????????????? | | ?????????????????????? ??????????????????????? | | ???????????????????? ??????????????????????? | | ????????????????????## ??????????????????????? | | ???????????????????? ??????????????????????? | | ???????????????? ???? ??????????????????????? | | ????????????????? """ ??????????????????????? | | ????????????????? """ #?????????????????????? | | ????????????????? """ ##?????????????????????? | | ?????????## ??? ? ##?????????????????????? | | ????????? # ##?????????????????????? | | ????????? # """ ##?????????????????????? | | ????????? + """ ##?????????????????????? | | ????????? # ==] """ u###### ????????????? | | ????????? # =! ###############????????? | | ????????? # =] @ ##### ????? | | ????????? ##??##############Y ???? | | ??????????????########### ""????? | | ???????????????????????## ## ""? "? | | ?????????????????######## ## ##### "?" "" | | ?????????????????########/### #######? | | ?????????????????## # # ??????? | | ?????????????????## / # ??????? | | ?????????????????## """"""% # + ?????? ? | | ?????????????????## """"""" # # ?????? ##? | | ????????? ####### """"""" # ####### #"? | | ?????????########## """"""" # ####### #"? | | ?????????## ## """"""" # #"? | | ?????????## ## + #"? | | ?????????## ! ############ #"? | | ?????????## #############+#####+####### #"? | | ???? ????## ######### # ##### #"" | | ???? ????## ######### ??????? # ##?## ### | | ???? ????####+####### # ??????? # ##### | | ???? ????#### + *# ??????? # ##### | | ???? ??????##### # # ??????? # / " | | ???? ######### # = # ??????? # ##### " | | ??## ######???## + # ??????? # ##### " | | ??## # ####### #### " # ????? ######### | | ??## # ####### #### T ##?????############% | +----------------------------------------------------+ Best States ------------- Heat Dissipation 28 Energy Generation 10 Energy Capacity 250 Matter Stores 300 Matter Capacity 300 Sight Range 16 Terrain Scan Density 10 Armor Coverage 150 Evasion (%) 55 Item Schematics ----------------- None Robot Schematics ------------------ None Fabricated ------------ Nothing Alien Tech Used ----------------- None Achievements -------------- None Challenges ------------ None Game ------ Seed PointSignalElectrolaser Manual? 0 Play Time 00:10:47 Cumulative 180.9 hours Start 2021.12.09 @ 17:41:58 End 2021.12.09 @ 18:00:13 Sessions 1 Manual Loads 0 Difficulty Rogue Special Mode None Game No. 247 Rogue 247 Adventurer 0 Explorer 0 Win Type - Total 2 Types 2/0/0/0/0/0/0/0/0 Lore% 60 Gallery% 73 Achievement% 51 Wizard Run 0 Options --------- ASCII 0 Keyboard 1 Movement Vi Keybinds 0 Fullscreen 1 Font 16/Cog Map View 76x50 Tactical HUD 1 Map Filters NONE Filters NONE Steam 1 RUN: 79b61a30-9ef1-4cd1-94e4-1cf76398211c